fUST/lending_fUST_20240208
["ID","MTS","AMOUNT","RATE_DAILY","PERIOD"]
[313426523,1707336639798,-155.01705188,0.00018138,2]
[313426525,1707336639823,-1859.71951506,0.00018138,2]
[313426527,1707336639851,-980.6631799,0.00018138,2]
[313426529,1707336639880,-609.6684753,0.00018138,2]
[313426530,1707336639897,-500.0,0.00018138,2]
[313426531,1707336639915,-3330.53040283,0.00018138,2]
[313426533,1707336639928,-3755.69529023,0.00018138,2]
[313426535,1707336639947,-155.01705188,0.00018139,2]
[313426536,1707336639969,-352.18460138,0.00018139,2]
[313426537,1707336639981,-155.01705188,0.00018139,2]
[313426538,1707336639996,-330.4947575,0.00018139,2]
[313426539,1707336640007,-718.01783563,0.00018139,2]
[313426540,1707336640026,-590.02632581,0.00018139,2]
[313426541,1707336640064,-357.85042828,0.00018139,2]
[313426542,1707336640078,-161.4945607,0.00018139,2]
[313426543,1707336640110,-37061.66416696,0.00018139,2]
[313426544,1707336640123,-3242.69998111,0.00018139,2]
[313426545,1707336640147,-80680.19280904,0.00018139,2]
[313426546,1707336640180,-155.01705188,0.0001814,2]
[313426547,1707336640190,-155.01705188,0.0001814,2]
[313426548,1707336640201,-155.01705188,0.0001814,2]
[313426549,1707336640226,-20929.45735728,0.0001814,2]
[313426550,1707336640244,-294.51312657,0.00018141,2]
[313426551,1707336640256,-175.69575442,0.00018141,2]
[313426552,1707336640273,-155.01240099,0.00018141,2]
[313426553,1707336640313,-155.01240099,0.00018141,2]
[313426554,1707336640335,-4179.85662615,0.00018141,2]
[313426555,1707336640352,-155.01240099,0.00018142,2]
[313426556,1707336640391,-179.18619241,0.00018142,2]
[313426557,1707336640408,-155.01240099,0.00018142,2]
[313426558,1707336640441,-1946.99903392,0.00018142,2]
[313426559,1707336640476,-5852.91245033,0.00018142,2]
[313426560,1707336640502,-155.01240099,0.00018142,2]
[313426561,1707336640524,-20955.05859825,0.00018142,2]
[313426562,1707336640543,-19135.13450941,0.00018142,2]
[313426563,1707336640565,-155.01550155,0.00018143,2]
[313426564,1707336640607,-523.57423326,0.00018143,2]
[313426565,1707336640625,-167.15951964,0.00018143,2]
[313426566,1707336640646,-2044.6804249,0.00018143,2]
[313426567,1707336640678,-155.01240099,0.00018143,2]
[313426568,1707336640708,-5223.83358614,0.00018143,2]
[313426569,1707336640737,-19918.13279308,0.00018143,2]
[313426570,1707336640756,-199.73989634,0.00018144,2]
[313426571,1707336640870,-184.9704952,0.00018144,2]
[313426572,1707336640893,-261.84108651,0.00018145,2]
[313426573,1707336640912,-2822.01569009,0.00018145,2]
[313426574,1707336640944,-214.05113646,0.00018145,2]
[313426575,1707336640965,-1687.90304115,0.00018146,2]
[313426576,1707336640987,-167.49012731,0.00018146,2]
[313426577,1707336641021,-500.93219164,0.00018147,2]
[313426578,1707336641037,-2109.6618422,0.0001824,2]
[313426579,1707336641048,-247.41912546,0.00018248,2]
[313426581,1707336641059,-155.00620025,0.00018248,2]
[313426583,1707336641072,-307.31318331,0.00018248,2]
[313426585,1707336641084,-159.4566598,0.00018253,2]
[313426586,1707336641096,-160.37388443,0.00018737,2]
[313426588,1707336641107,-155.01860223,0.00018819,2]
[313426590,1707336641117,-155.43781289,0.00018819,2]
[313426592,1707336641130,-1867.01205538,0.00018821,2]
[313426594,1707336641146,-155.02790502,0.00018823,2]
[313426596,1707336641157,-169.424311,0.00019178,2]
[313426598,1707336641168,-741.39467799,0.0002,2]
[313426600,1707336641184,-180.7763201,0.0002,2]
[313426601,1707336641206,-1201.66555398,0.0002,2]
[313426603,1707336641233,-200.99449137,0.0002,2]
[313426606,1707336641266,-500.9321916,0.0002023,2]
[313426607,1707336641306,-200.0,0.00020701,2]
[313426608,1707336641334,-500.0,0.00020822,2]
[313426609,1707336641359,-500.0,0.00020822,2]
[313426610,1707336641381,-500.0,0.00020822,2]
[313426611,1707336641405,-500.0,0.00020822,2]
[313426612,1707336641438,-500.0,0.00020822,2]
[313426613,1707336641468,-500.0,0.00020822,2]
[313426614,1707336641500,-500.0,0.00020822,2]
[313426615,1707336641529,-500.0,0.00020822,2]
[313426616,1707336641550,-500.0,0.00020822,2]
[313426617,1707336641568,-500.0,0.00020822,2]
[313426618,1707336641582,-500.0,0.00020822,2]
[313426619,1707336641604,-305.23095583,0.00020822,2]
[313426620,1707336641626,-500.0,0.00020822,2]
[313426621,1707336641651,-500.0,0.00020822,2]
[313426622,1707336641672,-500.0,0.00020822,2]
[313426623,1707336641690,-500.0,0.00020822,2]
[313426624,1707336641726,-250.0,0.00020822,2]
[313426625,1707336641742,-495.8098529,0.00020822,2]
[313426626,1707336641765,-166.22121832,0.00020822,2]
[313426627,1707336641791,-500.0,0.00020822,2]
[313426629,1707336641819,-500.0,0.00020822,2]
[313426631,1707336641851,-500.0,0.00020822,2]
[313426632,1707336641865,-499.99999999,0.00020822,2]
[313426633,1707336641881,-598.51905898,0.00020822,2]
[313426634,1707336641896,-500.0,0.00020822,2]
[313426635,1707336641928,-500.0,0.00020822,2]
[313426636,1707336641972,-500.0,0.00020822,2]
[313426637,1707336641999,-500.0,0.00020822,2]
[313426638,1707336642030,-500.0,0.00020822,2]
[313426639,1707336642051,-500.0,0.00020822,2]
[313426640,1707336642073,-500.0,0.00020822,2]
[313426641,1707336642095,-500.0,0.00020822,2]
[313426642,1707336642112,-402.5,0.00020822,2]
[313426643,1707336642132,-500.0,0.00020822,2]
[313426644,1707336642150,-500.0,0.00020822,2]
[313426645,1707336642179,-500.0,0.00020822,2]
[313426646,1707336642199,-500.0,0.00020822,2]
[313426647,1707336642221,-500.0,0.00020822,2]
[313426648,1707336642264,-500.0,0.00020822,2]
[313426649,1707336642296,-362.90320273,0.00020822,2]
[313426650,1707336642316,-500.0,0.00020822,2]
[313426651,1707336642329,-500.0,0.00020822,2]
[313426652,1707336642347,-500.0,0.00020822,2]
[313426653,1707336642376,-500.0,0.00020822,2]
[313426654,1707336642394,-500.0,0.00020822,2]
[313426655,1707336642422,-500.0,0.00020822,2]
[313426656,1707336642446,-500.0,0.00020822,2]
[313426657,1707336642473,-500.0,0.00020822,2]
[313426658,1707336642491,-500.0,0.00020822,2]
[313426659,1707336642521,-500.0,0.00020822,2]
[313426660,1707336642536,-500.0,0.00020822,2]
[313426661,1707336642549,-500.0,0.00020822,2]
[313426662,1707336642566,-500.0,0.00020822,2]
[313426663,1707336642579,-500.0,0.00020822,2]
[313426664,1707336642595,-500.0,0.00020822,2]
[313426665,1707336642613,-500.0,0.00020822,2]
[313426666,1707336642644,-500.0,0.00020822,2]
[313426667,1707336642682,-493.01352224,0.00020822,2]
[313426668,1707336642703,-500.0,0.00020822,2]
[313426669,1707336642727,-500.0,0.00020822,2]
[313426670,1707336642752,-500.0,0.00020822,2]
[313426671,1707336642765,-500.0,0.00020822,2]
[313426672,1707336642787,-171.27380365,0.00020822,2]
[313426673,1707336642827,-500.0,0.00020822,2]
[313426674,1707336642840,-500.0,0.00020822,2]
[313426675,1707336642868,-500.0,0.00020822,2]
[313426676,1707336642891,-500.0,0.00020822,2]
[313426678,1707336642913,-500.0,0.00020822,2]
[313426679,1707336642933,-500.0,0.00020822,2]
[313426681,1707336642949,-500.0,0.00020822,2]
[313426683,1707336642967,-500.0,0.00020822,2]
[313426685,1707336642996,-500.0,0.00020822,2]
[313426686,1707336643010,-500.0,0.00020822,2]
[313426689,1707336643032,-500.0,0.00020822,2]
[313426690,1707336643058,-500.0,0.00020822,2]
[313426692,1707336643086,-500.0,0.00020822,2]
[313426694,1707336643109,-500.0,0.00020822,2]
[313426695,1707336643129,-500.0,0.00020822,2]
[313426697,1707336643154,-500.0,0.00020822,2]
[313426699,1707336643173,-424.20037517,0.00020822,2]
[313426701,1707336643198,-500.0,0.00020822,2]
[313426703,1707336643217,-511.04363824,0.00020822,2]
[313426705,1707336643239,-500.0,0.00020822,2]
[313426706,1707336643266,-500.0,0.00020822,2]
[313426707,1707336643289,-500.0,0.00020822,2]
[313426709,1707336643307,-500.0,0.00020822,2]
[313426710,1707336643327,-500.0,0.00020822,2]
[313426711,1707336643356,-500.0,0.00020822,2]
[313426712,1707336643375,-489.14611356,0.00020822,2]
[313426713,1707336643388,-177.16514048,0.00020822,2]
[313426714,1707336643415,-500.0,0.00020822,2]
[313426715,1707336643440,-222.96148428,0.00020822,2]
[313426716,1707336643471,-500.0,0.00020822,2]
[313426717,1707336643499,-500.0,0.00020822,2]
[313426718,1707336643523,-500.0,0.00020822,2]
[313426719,1707336643547,-500.0,0.00020822,2]
[313426720,1707336643558,-500.0,0.00020822,2]
[313426721,1707336643579,-500.0,0.00020822,2]
[313426722,1707336643595,-500.0,0.00020822,2]
[313426723,1707336643606,-500.0,0.00020822,2]
[313426724,1707336643622,-500.0,0.00020822,2]
[313426725,1707336643648,-500.0,0.00020822,2]
[313426726,1707336643662,-500.0,0.00020822,2]
[313426727,1707336643674,-500.0,0.00020822,2]
[313426729,1707336643688,-500.0,0.00020822,2]
[313426732,1707336643711,-500.0,0.00020822,2]
[313426734,1707336643725,-249.28994293,0.00020822,2]
[313426736,1707336643739,-500.0,0.00020822,2]
[313426737,1707336643751,-500.0,0.00020822,2]
[313426738,1707336643764,-500.0,0.00020822,2]
[313426739,1707336643775,-500.0,0.00020822,2]
[313426740,1707336643787,-386.53883618,0.00020822,2]
[313426741,1707336643796,-500.0,0.00020822,2]
[313426742,1707336643806,-500.0,0.00020822,2]
[313426743,1707336643817,-500.0,0.00020822,2]
[313426744,1707336643826,-500.0,0.00020822,2]
[313426745,1707336643836,-500.0,0.00020822,2]
[313426746,1707336643847,-500.0,0.00020822,2]
[313426747,1707336643856,-500.0,0.00020822,2]
[313426748,1707336643866,-500.0,0.00020822,2]
[313426749,1707336643877,-500.0,0.00020822,2]
[313426750,1707336643887,-500.0,0.00020822,2]
[313426751,1707336643897,-500.0,0.00020822,2]
[313426752,1707336643907,-500.0,0.00020822,2]
[313426753,1707336643917,-500.0,0.00020822,2]
[313426754,1707336643927,-500.0,0.00020822,2]
[313426755,1707336643937,-500.0,0.00020822,2]
[313426756,1707336643948,-500.0,0.00020822,2]
[313426757,1707336643958,-500.0,0.00020822,2]
[313426758,1707336643969,-500.0,0.00020822,2]
[313426759,1707336643979,-500.0,0.00020822,2]
[313426760,1707336643989,-500.0,0.00020822,2]
[313426761,1707336643999,-184.1078,0.00020822,2]
[313426762,1707336644009,-500.0,0.00020822,2]
[313426763,1707336644018,-500.0,0.00020822,2]
[313426764,1707336644028,-541.85343586,0.00020822,2]
[313426765,1707336644037,-500.0,0.00020822,2]
[313426766,1707336644047,-500.0,0.00020822,2]
[313426767,1707336644057,-500.0,0.00020822,2]
[313426768,1707336644068,-500.0,0.00020822,2]
[313426769,1707336644077,-500.0,0.00020822,2]
[313426770,1707336644087,-500.0,0.00020822,2]
[313426771,1707336644097,-3106.92239718,0.00021,7]
[313426772,1707336644106,-500.0,0.00021917,2]
[313426773,1707336644116,-500.0,0.00021917,2]
[313426774,1707336644125,-534.70993647,0.00021917,2]
[313426775,1707336644139,-166.666666,0.00021918,2]
[313426776,1707336644149,-326.42112036,0.00022,2]
[313426777,1707336644159,-3980.62518534,0.00022,2]
[313426778,1707336644168,-500.9321916,0.00022314,2]
[313426779,1707336644179,-166.666666,0.00022431,2]
[313426780,1707336644189,-280.0,0.00022771,7]
[313426781,1707336644198,-166.666666,0.00022944,2]
[313426782,1707336644208,-9967.3761107,0.00023,2]
[313426783,1707336644220,-1263.05688852,0.00023,2]
[313426785,1707336644230,-904.77250442,0.00023016,2]
[313426786,1707336644240,-155.00155002,0.00023116,2]
[313426787,1707336644250,-166.666666,0.00023456,2]
[313426788,1707336644259,-166.666666,0.00023969,2]
[313426789,1707336644269,-4039.14093432,0.00024,2]
[313426790,1707336644279,-500.9321916,0.00024397,2]
[313426791,1707336644289,-166.666666,0.00024482,2]
[313426792,1707336644298,-1586.00570889,0.000249,2]
[313426793,1707336644308,-499.42473756,0.0002496,5]
[313426794,1707336644317,-1331.32994501,0.00024999,2]
[313426795,1707336644327,-6299.4069347,0.00025,2]
[313426796,1707336644336,-155.00155002,0.00025,2]
[313426797,1707336644345,-4737.99496136,0.00025,2]
[313426798,1707336644355,-335.52992191,0.00025,2]
[313426799,1707336644365,-5776.21160456,0.00025,2]
[313426800,1707336644374,-535.1407664,0.00025,2]
[313426801,1707336644384,-7402.65909098,0.00025,2]
[313426802,1707336644393,-1010.27302412,0.00025,2]
[313426803,1707336644402,-1000.0,0.00025,2]
[313426804,1707336644412,-1000.0,0.00025,2]
[313426805,1707336644421,-1000.0,0.00025,2]
[313426806,1707336644431,-1000.0,0.00025,2]
[313426807,1707336644440,-1000.0,0.00025,2]
[313426808,1707336644450,-1000.0,0.00025,2]
[313426810,1707336644459,-1000.0,0.00025,2]
[313426811,1707336644470,-1000.0,0.00025,2]
[313426812,1707336644481,-1000.0,0.00025,2]
[313426813,1707336644490,-1000.0,0.00025,2]
[313426814,1707336644499,-1000.0,0.00025,2]
[313426815,1707336644509,-1000.0,0.00025,2]
[313426816,1707336644518,-1000.0,0.00025,2]
[313426817,1707336644528,-1000.0,0.00025,2]
[313426818,1707336644537,-1000.0,0.00025,2]
[313426819,1707336644546,-1000.0,0.00025,2]
[313426820,1707336644556,-1000.0,0.00025,2]
[313426821,1707336644565,-1000.0,0.00025,2]
[313426822,1707336644574,-1000.0,0.00025,2]
[313426823,1707336644584,-1000.0,0.00025,2]
[313426824,1707336644593,-1000.0,0.00025,2]
[313426825,1707336644602,-391.0,0.00025048,7]
[313426826,1707336644611,-177.48090679,0.00025686,2]
[313426827,1707336644621,-157.67656987,0.00025686,2]
[313426828,1707336644630,-324.09342952,0.00025686,2]
[313426829,1707336644639,-155.50739192,0.00025686,2]
[313426830,1707336644648,-683.44618662,0.00025686,2]
[313426831,1707336644657,-2282.48977409,0.00025687,2]
[313426832,1707336644666,-156.29322352,0.00025688,2]
[313426833,1707336644676,-259.80831854,0.00025688,2]
[313426834,1707336644686,-156.13731761,0.00025688,2]
[313426835,1707336644695,-158.91003939,0.00025688,2]
[313426836,1707336644782,-200.0,0.00025688,2]
[313426837,1707336644792,-204.93720739,0.00025688,2]
[313426838,1707336644801,-299.49492244,0.00025688,2]
[313426839,1707336644810,-195.07445412,0.00025688,2]
[313426840,1707336644820,-303.36941111,0.00025688,2]
[313426841,1707336644829,-175.49238929,0.00025688,2]
[313426842,1707336644839,-216.76960516,0.00025688,2]
[313426843,1707336644849,-983.25265192,0.00025688,2]
[313426844,1707336644858,-155.0310062,0.00025688,2]
[313426845,1707336644868,-165.18855517,0.00025688,2]
[313426846,1707336644877,-303.93171575,0.00025688,2]
[313426847,1707336644886,-168.88418216,0.00025688,2]
[313426848,1707336644895,-157.02288753,0.00025688,2]
[313426849,1707336644904,-201.53465978,0.00025688,2]
[313426850,1707336644913,-159.22305658,0.00025688,2]
[313426851,1707336644922,-161.6427166,0.00025688,2]
[313426852,1707336644932,-309.92873805,0.00025688,2]
[313426853,1707336644941,-283.59233718,0.00025688,2]
[313426854,1707336644951,-155.08679129,0.00025688,2]
[313426855,1707336644961,-181.08486443,0.00025688,2]
[313426856,1707336644971,-1647.08163438,0.00025688,2]
[313426857,1707336644980,-295.51074894,0.00025688,2]
[313426858,1707336644989,-7314.00507721,0.00025688,2]
[313426859,1707336644999,-236.07341904,0.00025688,2]
[313426860,1707336645009,-11041.01173215,0.00025689,2]
[313426861,1707336645017,-66557.92222554,0.0002569,2]
[313426862,1707336645027,-5000.0,0.0002569,2]
[313426863,1707336645036,-13522.42845132,0.0002569,2]
[313426864,1707336645046,-43508.53084586,0.00025696,2]
[313426865,1707336645056,-6033.01895135,0.00025706,2]
[313426866,1707336645066,-40213.34944687,0.00025712,2]
[313426867,1707336645076,-2735.0804277,0.000259,2]
[313426868,1707336645085,-2548.19646532,0.00026197,2]
[313426869,1707336645094,-839.78743603,0.00026197,2]
[313426870,1707336645104,-272.25392849,0.00026197,2]
[313426871,1707336645112,-157.80769843,0.00026197,2]
[313426872,1707336645122,-500.9321916,0.0002648,2]
[313426873,1707336645131,-1586.00570889,0.00026567,2]
[313426874,1707336645142,-8668.59935887,0.0002658,4]
[313426875,1707336645151,-391.245638,0.00026759,2]
[313426876,1707336645161,-155.02635535,0.00027,2]
[313426877,1707336645171,-1382.39428642,0.00027,2]
[313426878,1707336645180,-181.997952,0.000271,2]
[313426879,1707336645190,-500.0,0.00027269,2]
[313426880,1707336645198,-500.0,0.00027269,2]
[313426881,1707336645208,-174.06387516,0.00027269,2]
[313426882,1707336645218,-500.0,0.00027269,2]
[313426883,1707336645228,-500.0,0.00027269,2]
[313426884,1707336645237,-400.0,0.00027269,2]
[313426885,1707336645246,-202.25137003,0.00027269,2]
[313426886,1707336645256,-500.0,0.00027269,2]
[313426887,1707336645266,-500.0,0.00027269,2]
[313426888,1707336645275,-500.0,0.00027269,2]
[313426889,1707336645284,-48933.02600869,0.0002727,3]
[313426890,1707336645293,-204228.28997985,0.00027295,2]
[313426891,1707336645304,-500.0,0.00027397,3]
[313426892,1707336645313,-500.0,0.00027397,3]
[313426893,1707336645322,-500.0,0.00027397,3]
[313426894,1707336645332,-500.0,0.00027397,3]
[313426895,1707336645341,-787.1,0.00027397,3]
[313426896,1707336645351,-500.0,0.00027397,3]
[313426897,1707336645360,-500.0,0.00027397,3]
[313426898,1707336645370,-500.0,0.00027397,3]
[313426899,1707336645379,-500.0,0.00027397,3]
[313426900,1707336645389,-500.0,0.00027397,3]
[313426901,1707336645400,-500.0,0.00027397,3]
[313426902,1707336645410,-500.0,0.00027397,3]
[313426903,1707336645419,-500.0,0.00027397,3]
[313426904,1707336645429,-509.68515022,0.00027397,3]
[313426905,1707336645439,-500.0,0.00027397,3]
[313426906,1707336645449,-501.30383825,0.00027397,3]
[313426907,1707336645461,-507.45214377,0.00027397,3]
[313426908,1707336645473,-503.38296186,0.00027397,3]
[313426909,1707336645482,-500.0,0.00027397,2]
[313426910,1707336645491,-501.84263882,0.00027397,3]
[313426911,1707336645500,-500.0,0.00027397,3]
[313426912,1707336645509,-500.0,0.00027397,3]
[313426913,1707336645518,-504.36232672,0.00027397,3]
[313426914,1707336645527,-500.0,0.00027397,3]
[313426915,1707336645536,-500.0,0.00027397,3]
[313426916,1707336645545,-334.61639931,0.00027397,3]
[313426917,1707336645554,-500.0,0.00027397,3]
[313426918,1707336645563,-500.0,0.00027397,3]
[313426919,1707336645572,-500.0,0.00027397,2]
[313426920,1707336645581,-500.0,0.00027397,3]
[313426921,1707336645590,-500.0,0.00027397,3]
[313426922,1707336645599,-459.55495517,0.00027397,3]
[313426923,1707336645608,-503.82449988,0.00027397,3]
[313426924,1707336645618,-460.61215802,0.00027397,3]
[313426925,1707336645627,-500.0,0.00027397,3]
[313426926,1707336645636,-513.24234812,0.00027397,3]
[313426927,1707336645646,-930.41,0.00027397,3]
[313426928,1707336645655,-500.0,0.00027397,3]
[313426929,1707336645665,-500.0,0.00027397,3]
[313426930,1707336645674,-1357.98,0.00027397,3]
[313426931,1707336645683,-518.34874671,0.00027397,3]
[313426932,1707336645693,-500.0,0.00027397,3]
[313426933,1707336645702,-622.94208789,0.00027397,3]
[313426934,1707336645711,-503.16532619,0.00027397,3]
[313426935,1707336645722,-511.43568372,0.00027397,3]
[313426936,1707336645731,-554.27336056,0.00027397,3]
[313426937,1707336645740,-500.0,0.00027397,3]
[313426938,1707336645749,-500.0,0.00027397,3]
[313426939,1707336645759,-500.0,0.00027397,3]
[313426940,1707336645769,-500.0,0.00027397,3]
[313426941,1707336645779,-500.0,0.00027397,3]
[313426942,1707336645788,-500.0,0.00027397,3]
[313426943,1707336645798,-500.0,0.00027397,3]
[313426944,1707336645807,-548.60961144,0.00027397,3]
[313426945,1707336645816,-568.11819606,0.00027397,3]
[313426946,1707336645825,-931.3,0.00027397,3]
[313426947,1707336645835,-500.0,0.00027397,3]
[313426948,1707336645844,-500.0,0.00027397,3]
[313426949,1707336645853,-1168.97,0.00027397,3]
[313426950,1707336645863,-749.67,0.00027397,3]
[313426951,1707336645872,-2369.29,0.00027397,3]
[313426952,1707336645881,-500.0,0.00027397,2]
[313426953,1707336645891,-690.33,0.00027397,3]
[313426954,1707336645900,-9093.09,0.00027397,3]
[313426955,1707336645909,-500.0,0.00027397,3]
[313426956,1707336645919,-155.0,0.00027397,2]
[313426957,1707336645928,-500.0,0.00027397,3]
[313426958,1707336645937,-500.0,0.00027397,3]
[313426959,1707336645946,-500.0,0.00027397,3]
[313426960,1707336645955,-500.0,0.00027397,2]
[313426961,1707336645964,-500.0,0.00027397,3]
[313426963,1707336645975,-503.88676801,0.00027397,3]
[313426965,1707336645984,-500.0,0.00027397,3]
[313426967,1707336645993,-250.07075875,0.00027397,3]
[313426969,1707336646003,-500.0,0.00027397,3]
[313426971,1707336646013,-500.0,0.00027397,3]
[313426973,1707336646022,-500.0,0.00027397,3]
[313426975,1707336646031,-500.0,0.00027397,3]
[313426977,1707336646042,-909.84,0.00027397,3]
[313426980,1707336646051,-1554.07,0.00027397,3]
[313426982,1707336646061,-500.0,0.00027397,2]
[313426984,1707336646071,-510.91289782,0.00027397,3]
[313426985,1707336646080,-500.0,0.00027397,3]
[313426987,1707336646089,-615.59,0.00027397,3]
[313426989,1707336646098,-1000.0,0.00027397,2]
[313426991,1707336646108,-500.0,0.00027397,3]
[313426994,1707336646117,-500.0,0.00027397,3]
[313426996,1707336646126,-504.35120584,0.00027397,3]
[313426997,1707336646139,-500.0,0.00027397,3]
[313426998,1707336646148,-500.0,0.00027397,3]
[313427000,1707336646158,-389.77919623,0.00027397,3]
[313427002,1707336646167,-2605.72,0.00027397,3]
[313427003,1707336646179,-414.94501911,0.00027397,3]
[313427004,1707336646188,-500.0,0.00027397,3]
[313427005,1707336646197,-4252.06,0.00027397,3]
[313427006,1707336646207,-784.66,0.00027397,3]
[313427007,1707336646219,-500.0,0.00027397,3]
[313427008,1707336646228,-500.0,0.00027397,3]
[313427009,1707336646239,-500.0,0.00027397,3]
[313427010,1707336646248,-6209.74,0.00027397,3]
[313427011,1707336646258,-505.17221815,0.00027397,3]
[313427012,1707336646267,-400.74955447,0.00027397,2]
[313427014,1707336646276,-19164.38,0.00027397,3]
[313427015,1707336646285,-511.89299392,0.000275,2]
[313427016,1707336646296,-600.0,0.000275,2]
[313427017,1707336646306,-72316.30506324,0.000275,2]
[313427018,1707336646315,-563.99655197,0.000275,2]
[313427019,1707336646326,-500.0,0.00027534,2]
[313427020,1707336646336,-200.0,0.00027553,15]
[313427021,1707336646345,-348.0,0.00027553,15]
[313427022,1707336646356,-500.0,0.00027671,3]
[313427023,1707336646366,-500.0,0.00027671,3]
[313427024,1707336646375,-500.0,0.00027671,3]
[313427025,1707336646384,-500.0,0.00027671,3]
[313427026,1707336646393,-787.1,0.00027671,3]
[313427027,1707336646403,-500.0,0.00027671,3]
[313427028,1707336646412,-500.0,0.00027671,3]
[313427029,1707336646421,-500.0,0.00027671,3]
[313427030,1707336646430,-500.0,0.00027671,3]
[313427031,1707336646439,-537.66381082,0.00027671,3]
[313427032,1707336646448,-500.0,0.00027671,3]
[313427033,1707336646457,-500.0,0.00027671,2]
[313427034,1707336646466,-500.0,0.00027671,3]
[313427035,1707336646476,-500.0,0.00027671,3]
[313427036,1707336646485,-500.0,0.00027671,3]
[313427037,1707336646494,-500.0,0.00027671,3]
[313427038,1707336646503,-500.0,0.00027671,3]
[313427039,1707336646512,-500.0,0.00027671,3]
[313427040,1707336646522,-500.0,0.00027671,2]
[313427041,1707336646530,-500.0,0.00027671,3]
[313427042,1707336646540,-500.0,0.00027671,3]
[313427043,1707336646550,-500.0,0.00027671,3]
[313427044,1707336646560,-930.41,0.00027671,3]
[313427045,1707336646569,-500.0,0.00027671,3]
[313427046,1707336646578,-1357.98,0.00027671,3]
[313427047,1707336646587,-500.0,0.00027671,3]
[313427048,1707336646596,-500.0,0.00027671,3]
[313427049,1707336646605,-500.0,0.00027671,3]
[313427050,1707336646614,-500.0,0.00027671,3]
[313427051,1707336646623,-254.62200392,0.00027671,3]
[313427052,1707336646632,-373.70565358,0.00027671,3]
[313427053,1707336646642,-500.0,0.00027671,3]
[313427054,1707336646651,-931.3,0.00027671,3]
[313427055,1707336646660,-500.0,0.00027671,3]
[313427056,1707336646670,-500.0,0.00027671,3]
[313427057,1707336646679,-1168.97,0.00027671,3]
[313427058,1707336646688,-749.67,0.00027671,3]
[313427059,1707336646698,-2369.29,0.00027671,3]
[313427060,1707336646707,-500.0,0.00027671,2]
[313427061,1707336646716,-690.33,0.00027671,3]
[313427062,1707336646726,-9093.09,0.00027671,3]
[313427063,1707336646735,-500.0,0.00027671,3]
[313427064,1707336646745,-387.8,0.00027671,3]
[313427065,1707336646754,-500.0,0.00027671,3]
[313427066,1707336646764,-500.0,0.00027671,2]
[313427067,1707336646773,-504.68330874,0.00027671,3]
[313427068,1707336646782,-500.0,0.00027671,3]
[313427069,1707336646791,-500.0,0.00027671,3]
[313427070,1707336646877,-506.15,0.00027671,3]
[313427071,1707336646886,-500.0,0.00027671,3]
[313427072,1707336646895,-500.0,0.00027671,3]
[313427073,1707336646905,-909.84,0.00027671,3]
[313427074,1707336646914,-1554.07,0.00027671,3]
[313427075,1707336646924,-500.0,0.00027671,2]
[313427076,1707336646933,-500.0,0.00027671,3]
[313427077,1707336646942,-615.59,0.00027671,3]
[313427078,1707336646952,-1000.0,0.00027671,2]
[313427079,1707336646961,-500.0,0.00027671,3]
[313427080,1707336646970,-500.0,0.00027671,3]
[313427081,1707336646979,-500.0,0.00027671,3]
[313427082,1707336646988,-2605.72,0.00027671,3]
[313427083,1707336646997,-500.0,0.00027671,3]
[313427084,1707336647006,-4252.06,0.00027671,3]